Cogmind - Beta 11 @@@ ROGUE MODE // 2022.03.19 @ 15:18:33 Player: Cyurio Result: Destroyed by G-34 Mercenary with Small Laser Performance ------------- Evolutions (1) 500 Regions Visited (4) 800 Robots Destroyed (62) 310 Value Destroyed (1825) 1825 Prototype IDs (3) 60 Alien Tech Used (0) 0 Bonus (744) 744 TOTAL SCORE: 4239 Bonus ------- High Alert Combat Kills 11 Follower Combat Kills 33 Entered Garrisons 200 Used RIF Installer 500 Cogmind --------- Core Integrity 0/400 Matter 300/300 Energy 280/280 System Corruption 0% Temperature Cool (6) Movement Walking (190) Ox1 Location -9/Garrison Parts ------- > --- POWER (1) -------- Heavy Ion Engine > --- PROPULSION (3) --- Aluminum Leg Aluminum Leg Armored Wheel > --- UTILITY (2) ------ Medium Storage Unit > --- WEAPON (3) ------- Katana Katana > --- INVENTORY (10) --- Light Nuclear Core Light Nuclear Core Aluminum Leg Aluminum Leg Large Storage Unit Light Armor Plating Medium Armor Plating Shield Generator Grenade Launcher Peak State ------------ > --- POWER ------------ Heavy Ion Engine > --- PROPULSION ------- Armored Wheel Armored Wheel Armored Wheel > --- UTILITY ---------- Medium Storage Unit Improved Sensor Array > --- WEAPON ----------- Katana Katana Katana > --- INVENTORY -------- Light Nuclear Core Light Nuclear Core Large Storage Unit Medium Armor Plating Grenade Launcher Katana [Rating: 23] Favorites ----------- Power Light Ion Engine Engine Light Ion Engine Propulsion Aluminum Leg Leg Aluminum Leg Wheel Armored Wheel Utility Medium Storage Unit Device Improved Sensor Array Storage Medium Storage Unit Protection Light Armor Plating Weapon Katana Energy Gun EM Pulse Gun Ballistic Gun Assault Rifle Slashing Weapon Katana Build | -11 -10 -9 -9 -9 ------- Run | Scr Mat Mat Sto Gar Slots Evolved 2 | . . 2 . . Power . | . . . . . Propulsion 1 | . . 1 . . Utility . | . . . . . Weapon 1 | . . 1 . . Parts Attached 24 | . 1 13 8 2 Power 2 | . . 1 1 . Engine 2 | . . 1 1 . Core . | . . . . . Reactor . | . . . . . Propulsion 14 | . . 8 4 2 Treads . | . . . . . Leg 6 | . . 2 2 2 Wheel 8 | . . 6 2 . Hover . | . . . . . Flight . | . . . . . Utility 4 | . 1 1 2 . Device 1 | . . 1 . . Storage 1 | . 1 . . . Processor . | . . . . . Hackware . | . . . . . Protection 2 | . . . 2 . Artifact . | . . . . . Weapon 4 | . . 3 1 . Energy Gun . | . . . . . Energy Cannon . | . . . . . Ballistic Gun . | . . . . . Ballistic Cannon . | . . . . . Launcher . | . . . . . Special Weapon . | . . . . . Impact Weapon . | . . . . . Slashing Weapon 4 | . . 3 1 . Piercing Weapon . | . . . . . Special Melee Weapon . | . . . . . Unidentified Prototypes . | . . . . . Parts Lost 14 | . . 3 7 4 Power 2 | . . 1 1 . Propulsion 7 | . . 2 3 2 Utility 3 | . . . 2 1 Weapon 2 | . . . 1 1 Highest Loss Streak 3 | . . 2 3 3 To Critical Strikes . | . . . . . Average Slot Usage (%) 94 | . 85 98 97 90 Engine 11 | . 14 10 11 11 Leg 16 | . 28 13 13 20 Wheel 13 | . . 19 17 11 Device 4 | . . 10 3 . Storage 11 | . 14 11 11 11 Protection 3 | . . . 7 3 Energy Gun 2 | . 14 . . . Ballistic Gun 2 | . 14 . . . Slashing Weapon 26 | . . 32 33 33 Naked Turns . | . . . . . Heaviest Build 27 | 12 17 24 27 27 Greatest Support 42 | 20 20 42 36 20 Greatest Overweight (x) 2 | . . 1 2 2 Average Overweight (x) . | . . . . 1 Largest Inventory Capacity 10 | 8 10 10 10 10 Average Capacity 9 | 8 8 10 10 10 Most Carried 10 | 5 10 10 10 10 Average Carried 8 | 5 7 9 7 9 Final Capacity 10 | 8 10 10 10 10 Final Carried 10 | 4 10 8 10 9 Class Distribution -------------------- 98% | Mutant Dominant Class ---------------- Mutant | -10/Materials Mutant | -9/Materials Mutant | -9/Storage Mutant | -9/Garrison Resources | -11 -10 -9 -9 -9 ----------- Run | Scr Mat Mat Sto Gar Matter Collected 462 | 197 34 131 80 20 Remotely . | . . . . . Salvage Created 2470 | . 225 917 1158 170 Parts 142 | . 12 55 69 6 Haulers Intercepted 5 | . . 4 1 . Recyclers Shooed . | . . . . . Parts Field Recycled . | . . . . . Retrieved Matter . | . . . . . Parts Self-Destructed . | . . . . . Prevented . | . . . . . Kills | -11 -10 -9 -9 -9 ------- Run | Scr Mat Mat Sto Gar Combat Hostiles Destroyed 55 | . 5 18 26 6 Melee 50 | . . 18 26 6 Guns 4 | . 4 . . . AOE 1 | . 1 . . . Classes Destroyed 6 | . 1 5 . . Worker 1 | . . 1 . . Hauler 5 | . . 4 1 . Operator 1 | . . 1 . . Swarmer 11 | . . 5 3 3 Grunt 31 | . 5 10 13 3 Sentry 13 | . . 3 10 . Best Kill Streak 8 | . 4 5 8 3 Combat Bots Only 7 | . 4 4 7 3 Max Kills in Single Turn 2 | . 1 1 1 2 Gunslinging . | . . . . . Exploded 1 | . 1 . . . Melee 2 | . . 1 1 2 Uniques/NPCs Destroyed . | . . . . . Combat | -11 -10 -9 -9 -9 -------- Run | Scr Mat Mat Sto Gar Damage Taken 2198 | . 277 466 1160 295 Core 485 | . 77 119 203 86 Absorbed by Shields . | . . . . . Regen/Repaired (Parts) 90 | . . . 90 . Core Remaining (%) 84 | 100 69 . . . Volleys Fired 14 | . 14 . . . Largest 2 | . 2 . . . Hottest 60 | . 60 . . . Shots Fired 28 | . 28 . . . Gun 28 | . 28 . . . Cannon . | . . . . . Launcher . | . . . . . Special . | . . . . . Kinetic 14 | . 14 . . . Thermal . | . . . . . Explosive . | . . . . . Electromagnetic 14 | . 14 . . . Robot Hit Streak 9 | . 9 . . . Robot Miss Streak 1 | . 1 . . . Penetration Max . | . . . . . Secondary Targets . | . . . . . Shots Hit Robots 153 | . 21 46 70 16 Core Hits 67 | . 9 24 28 6 Critical Kills . | . . . . . Critical Parts Destroyed . | . . . . . Critical Strikes 7 | . . 4 3 . Sever 7 | . . 4 3 . Melee Attacks 187 | . . 70 93 24 Impact . | . . . . . Slashing 187 | . . 70 93 24 Piercing . | . . . . . Sneak Attacks 13 | . . 8 5 . Combat Hostiles . | . . . . . Follow-up Attacks 35 | . . 13 15 7 Damage Inflicted 4930 | . 301 1749 2391 489 Guns 272 | . 272 . . . Cannons . | . . . . . Explosions 29 | . 29 . . . Melee 4629 | . . 1749 2391 489 Ramming . | . . . . . Kinetic 125 | . 125 . . . Thermal 29 | . 29 . . . Explosive . | . . . . . Electromagnetic 147 | . 147 . . . Impact . | . . . . . Slashing 4629 | . . 1749 2391 489 Piercing . | . . . . . Highest Corruption . | . . . . . Average Corruption . | . . . . . Corruption Purged . | . . . . . Corruption Blocked . | . . . . . Overload Shots . | . . . . . Overflow Damage 129 | . . 53 60 16 Projectiles . | . . . . . Explosions . | . . . . . Melee 129 | . . 53 60 16 Knockbacks . | . . . . . Impact . | . . . . . Kinetic . | . . . . . Secondary . | . . . . . Self-Inflicted Damage 40 | . 40 . . . Shots 1 | . 1 . . . Rammed . | . . . . . Targets Rammed . | . . . . . Kicked . | . . . . . Crushed . | . . . . . Highest Temperature 54 | . 54 4 13 . Average Temperature 21 | . 23 4 8 . Received Heat Transfer 936 | . 129 198 495 114 Siege Activations . | . . . . . Robots Corrupted . | . . . . . Combat Hostiles . | . . . . . Parts Fried . | . . . . . Impact Corruptions . | . . . . . Robots Melted . | . . . . . Combat Hostiles . | . . . . . Parts Melted . | . . . . . Heat Transferred . | . . . . . Parts Sabotaged . | . . . . . Parts Stolen . | . . . . . Parts Stripped . | . . . . . Power Chain Reactions 1 | . 1 . . . Missiles Intercepted . | . . . . . Alert | -11 -10 -9 -9 -9 ------- Run | Scr Mat Mat Sto Gar Peak Influence 420 | . 117 328 420 377 Initial 247 | . . 49 126 247 Average 190 | . 42 158 263 308 Maximum Alert Level 2 | . . 1 2 1 Low Security (%) 55 | 100 100 68 33 . Level 1 44 | . . 31 65 100 Level 2 . | . . . 1 . Level 3 . | . . . . . Level 4 . | . . . . . Level 5 . | . . . . . High Security . | . . . . . Max Security . | . . . . . Squads Dispatched 9 | . 2 4 3 . Investigation 5 | . 2 1 2 . Extermination . | . . . . . Reinforcement 4 | . . 3 1 . Assault . | . . . . . Garrison . | . . . . . Intercept . | . . . . . Searches Triggered . | . . . . . Construction Impeded . | . . . . . Haulers Reinforced . | . . . . . Active Scanning Responses . | . . . . . Cargo Convoy Interrupts . | . . . . . Stealth | -11 -10 -9 -9 -9 --------- Run | Scr Mat Mat Sto Gar Distress Signals 3 | . . 1 2 . Communications Jammed . | . . . . . Distress Signals . | . . . . . Times Spotted 81 | . 9 31 32 9 Peak Tracking Total 8 | . 4 6 8 3 Tactical Retreats 5 | . 1 3 . 1 Traps | -11 -10 -9 -9 -9 ------- Run | Scr Mat Mat Sto Gar Traps Triggered 2 | . 2 . . . Indirectly . | . . . . . Trap Hack Attempts . | . . . . . Triggered . | . . . . . Disarmed . | . . . . . Reprogrammed . | . . . . . Reused . | . . . . . Traps Extracted . | . . . . . Installed . | . . . . . Triggered . | . . . . . Machines | -11 -10 -9 -9 -9 ---------- Run | Scr Mat Mat Sto Gar Machines Disabled 1 | . 1 . . . Max in Single Turn 1 | . 1 . . . Machines Sabotaged . | . . . . . Garrisons Compromised . | . . . . . Overloaded Fab Kills . | . . . . . Hacking | -11 -10 -9 -9 -9 --------- Run | Scr Mat Mat Sto Gar Machines Accessed 25 | . 5 6 14 . Terminals 21 | . 5 6 10 . Fabricators . | . . . . . Repair Stations 1 | . . . 1 . Recycling Units 2 | . . . 2 . Scanalyzers . | . . . . . Garrison Access 1 | . . . 1 . Total Hacks 59 | . 14 17 28 . Successful 39 | . 5 13 21 . Failed 19 | . 9 3 7 . Catastrophic 2 | . 2 . . . Database Lockouts 1 | . . 1 . . Manual 12 | . . 7 5 . Terminals 53 | . 14 17 22 . Fabricators . | . . . . . Repair Stations 2 | . . . 2 . Recycling Units 3 | . . . 3 . Scanalyzers . | . . . . . Garrison Access 1 | . . . 1 . Terminal Hacks 33 | . 5 13 15 . Record 12 | . . 8 4 . Part Schematic 2 | . . . 2 . Robot Schematic 1 | . . . 1 . Robot Analysis 1 | . . . 1 . Prototype ID Bank 2 | . 1 . 1 . Open Door 3 | . . . 3 . Terminal Index 1 | . . 1 . . Recycling Unit Index 1 | . 1 . . . Alert Level 3 | . 1 . 2 . Unreport Threat 1 | . . 1 . . Locate Traps 1 | . . 1 . . Dispatch Records 1 | . 1 . . . Transport Status 1 | . . 1 . . Investigation Status 1 | . . 1 . . Hauler Manifests 1 | . 1 . . . Zone Layout 1 | . . . 1 . Fabricator Hacks . | . . . . . Repair Station Hacks 2 | . . . 2 . Scan Component 1 | . . . 1 . Repair 1 | . . . 1 . Recycling Unit Hacks 3 | . . . 3 . Process 1 | . . . 1 . Report Inventory 1 | . . . 1 . Retrieve Matter 1 | . . . 1 . Scanalyzer . | . . . . . Garrison Access Hacks 1 | . . . 1 . Unlock Access 1 | . . . 1 . Unauthorized Hacks . | . . . . . Terminals . | . . . . . Fabricators . | . . . . . Repair Stations . | . . . . . Recycling Units . | . . . . . Scanalyzers . | . . . . . Garrison Access . | . . . . . Data Cores Recovered . | . . . . . Used . | . . . . . Hacking Detections 14 | . 4 4 6 . Full Trace Events 5 | . 2 1 2 . Feedback Events . | . . . . . Feedback Blocked . | . . . . . Robot Schematics Acquired 1 | . . . 1 . Robots Built . | . . . . . Authchips . | . . . . . Time . | . . . . . Total Robot Build Rating . | . . . . . Part Schematics Acquired 2 | . . . 2 . Parts Built . | . . . . . Authchips . | . . . . . Time . | . . . . . Total Part Build Rating . | . . . . . Parts Repaired 1 | . . . 1 . Time 32 | . . . 32 . Parts Recycled . | . . . . . Recycled Matter 369 | . . . 369 . Retrieved Matter 557 | . . . 557 . Retrieved Components . | . . . . . Parts Scanalyzed . | . . . . . Part Schematics Acquired . | . . . . . Parts Damaged . | . . . . . Bothacking | -11 -10 -9 -9 -9 ------------ Run | Scr Mat Mat Sto Gar Used RIF Installer 1 | . . . . 1 Robots Hacked . | . . . . . Non-combat . | . . . . . Combat . | . . . . . Robot Hacks Applied . | . . . . . Relay Couplers Released . | . . . . . Fabnet Peak Effective % . | . . . . . Robots Rewired . | . . . . . Allies Hacked . | . . . . . Hacks Repelled . | . . . . . Allies | -11 -10 -9 -9 -9 -------- Run | Scr Mat Mat Sto Gar Total Allies 10 | . . . 10 . Largest Group 10 | . . . 10 . Highest-Rated Group 88 | . . . 88 . Highest-Rated Ally 16 | . . . 16 . Total Orders . | . . . . . Ally Attacks 18 | . . . 18 . Total Damage 170 | . . . 170 . Kills 1 | . . . 1 . Allies Corrupted . | . . . . . Allies Melted . | . . . . . Intel | -11 -10 -9 -9 -9 ------- Run | Scr Mat Mat Sto Gar Robot Analysis Total 1 | . . . 1 . Derelict Logs Recovered . | . . . . . Drone Launches . | . . . . . Drone Recoveries . | . . . . . Exploration | -11 -10 -9 -9 -9 ------------- Run | Scr Mat Mat Sto Gar Turns Passed 2323 | 1 460 732 930 200 Spaces Moved 1384 | 1 312 486 508 77 Core . | . . . . . Treads . | . . . . . Legs 755 | 1 312 172 193 77 Wheels 629 | . . 314 315 . Hover . | . . . . . Flight . | . . . . . Fastest Speed 85 | 120 120 85 86 190 Average Speed 121 | 120 120 101 131 190 Slowest Speed 260 | 120 120 190 190 260 Overloaded Moves . | . . . . . Propulsion Burnouts . | . . . . . Robots Hopped . | . . . . . Cave-ins Triggered . | . . . . . Exploration Rate (%) 45 | 2 56 48 87 32 Regions Visited 4 Branch Regions 1 Pre-discovered Areas . | . . . . . Known Exits Taken 1 | . . . 1 . Unknown Exits Taken 3 | 1 1 1 . . Scrap Searched . | . . . . . Spaces Dug . | . . . . . Terrain Destroyed 2 | . 2 . . . Melee . | . . . . . Projectile . | . . . . . AOE 2 | . 2 . . . Terrain Rammed . | . . . . . Walls Destroyed . | . . . . . Machines Disabled . | . . . . . Actions | -11 -10 -9 -9 -9 --------- Run | Scr Mat Mat Sto Gar Total 1780 | 2 371 648 656 103 Wait 181 | . 35 75 65 6 Move 1380 | . 311 485 507 77 Hop . | . . . . . Pick Up 26 | . 8 11 6 1 Fast Attach 11 | . . 6 5 . Attach 8 | . . 3 3 2 Detach 1 | . . 1 . . Swap 5 | . 1 4 . . Drop 19 | 2 2 14 1 . Fire 14 | . 14 . . . Melee 135 | . . 49 69 17 Ram . | . . . . . Kick . | . . . . . Crush . | . . . . . Escape Stasis . | . . . . . Rewire . | . . . . . Trap . | . . . . . Miscellaneous . | . . . . . Route ------- -11/Scrapyard -10/Materials (discovered 2 exits: *Mat / [*Min]) -9/Materials (discovered 3 exits: [*Min] / *Sto x2) -9/Storage (discovered 3 exits: [*Mat] / [Rec] / Gar) -9/Garrison History --------- Turn | Location | Event 2 | -11/Scrapyard | Discovered new exit (range 0) 2 | -11/Scrapyard | Entered Materials 243 | -10/Materials | Discovered new exit (range 15) 308 | -10/Materials | Build established: Mutant 385 | -10/Materials | Discovered new exit (range 6) 462 | -10/Materials | Entered another Materials area 462 | -9/Materials | Evolved 2 slots: Propulsion x1, Weapon x1 497 | -9/Materials | Discovered new exit (range 14) 555 | -9/Materials | Central database locked down 901 | -9/Materials | Discovered new exit (range 13) 1166 | -9/Materials | Discovered new exit (range 4) 1194 | -9/Materials | Entered Storage 1329 | -9/Storage | Assisted by bots powering up and referring to "LRC-V3" 1434 | -9/Storage | Discovered new exit (range 13) 1525 | -9/Storage | Destroyed 7 combat bots 1530 | -9/Storage | Lost 3 parts (1p1n1u) 1685 | -9/Storage | Repaired Arm. Wheel? 1694 | -9/Storage | Core integrity fell below 50% 1973 | -9/Storage | Discovered new exit (range 8) 2075 | -9/Storage | Core integrity fell below 20% 2118 | -9/Storage | Identified exit to Garrison 2124 | -9/Storage | Entered Garrison 2134 | -9/Garrison | Installed Relay Interface Framework 2182 | -9/Garrison | Triggered checkpoint 2237 | -9/Garrison | Lost 3 parts (2n1u) 2316 | -9/Garrison | Triggered checkpoint 2324 | -9/Garrison | Destroyed by G-34 Mercenary with Small Laser Last Messages --------------- 02190_ Katana follow-up attack on G-34 Mercenary. 02190_ G-34 Mercenary destroyed. 02190_ Aluminum Leg destroyed. 02192_ Lgt. Armor Plating destroyed. 02195_ Katana follow-up attack on G-34 Mercenary. 02206_ Aluminum Leg destroyed. 02208_ G-34 Mercenary destroyed. 02211_ Acquired 10 matter. 02214_ Acquired Aluminum Leg. 02229_ Katana follow-up attack on G-34 Mercenary. 02229_ G-34 Mercenary destroyed. 02242_ Katana follow-up attack on S-10 Pest. 02242_ S-10 Pest destroyed. 02242_ Katana follow-up attack on S-10 Pest. 02242_ S-10 Pest destroyed. 02247_ Destroyed Flight Unit. 02249_ Katana follow-up attack on S-10 Pest. 02263_ S-10 Pest destroyed. 02316_ Beams of light sweep through the air. An alarm sounds. 02320_ Katana destroyed. Map ----- +----------------------------------------------------+ | ?????????????????????????????????????????????????? | | ?????????????????????????????????????????????????? | | ?????????????????????????????????????????????????? | | ?????????????????????????????????????????????????? | | ?????????????????????????????????????????????????? | | ?????????????????????????????????????????????????? | | ?????????????????????????????????????????????????? | | ?????????????????????????????????????????????????? | | ?????????????????????????????????????????????????? | | ?????????????????????????????????????????????????? | | ?????????????????????????????????????????????????? | | ?????????????????????????????????????????????????? | | ?????????????????????????????????????????????????? | | ?????????????????????????????????????????????????? | | ?????????????????????????????????????????????????? | | ?????????????????????????????????????????????????? | | ?????????????????????????????????????????????????? | | ?????????????????????????????????????????????????? | | ?????????????????????????????????????????????????? | | ?????????????????????????????????????????????????? | | ?????????????????????????????????????????????????? | | ?????????????????????????????????????????????????? | | ?????????????????????????????????????????????????? | | ???????????????????????######????????????????????? | | ???????????????????????# gg#????????????????????? | | ?????????? ############# @ ######???????????????? | | ????????? ######??????????? | | ????????? ^ ????????? | | ????????? ????????? | | ???????????######## ## ## #######?????????? | | ??????????????????# ## ## #???????????????? | | ??????????????????" "???????????????? | | ??????????????????" "???????????????? | | ??????????????????" "???????????????? | | ??????????????????" "???????????????? | | ??????????????????# ## ## #???????????????? | | ??????????????????# ## ## #???????????????? | | ??????????????????# #???????????????? | | ??????????????????# #???????????????? | | ??????????????????# #???????????????? | | ??????????????????# ##""""## #???????????????? | | ??????????????????# #??????? #???????????????? | | ??????????????????# #???????? #???????????????? | | ??????????????????# #???????? #???????????????? | | ??????????????????# #????????? #???????????????? | | ??????????????????# #??????????#???????????????? | | ??????????????????# #??????????????????????????? | | ################### #??????????????????????????? | | #??????????????????????????? | | * #??????????????????????????? | +----------------------------------------------------+ Best States ------------- Heat Dissipation 28 Energy Generation 14 Energy Capacity 280 Matter Stores 300 Matter Capacity 300 Sight Range 16 Robot Scan Range 15 Terrain Scan Density 10 Armor Coverage 150 Evasion (%) 55 Item Schematics ----------------- Chainsword | -9/Storage | Hacked Deuterium Engine | -9/Storage | Hacked Robot Schematics ------------------ K-01 Serf | -9/Storage | Hacked Fabricated ------------ Nothing Alien Tech Used ----------------- None Achievements -------------- The More The Merrier Challenges ------------ None Game ------ Seed BackupFieldCalibrator Manual? 0 Play Time 00:31:04 Cumulative 30.2 hours Start 2022.03.19 @ 14:47:23 End 2022.03.19 @ 15:18:33 Sessions 1 Manual Loads 0 Difficulty Rogue Special Mode None Game No. 47 Rogue 47 Adventurer 0 Explorer 0 Win Type - Total 0 Types 0/0/0/0/0/0/0/0/0 Lore% 24 Gallery% 28 Achievement% 24 Wizard Run 0 Options --------- ASCII 0 Keyboard 1 Movement Vi Keybinds 0 Fullscreen 1 Font 24/Smallcaps Map View 76x50 Tactical HUD 1 Map Filters NONE Filters NONE Steam 1 RUN: 73a91c26-e0cc-4347-b2df-caaedd3423dd